bitfinex/quotes_BTCUSD_20230907
["timestamp","ask_amount","ask_price","bid_price","bid_amount"]
[1694082095425,4.9533074,25770.0,25769.0,0.203603]
[1694082095778,4.9532474,25770.0,25769.0,0.203603]
[1694082095987,4.9531874,25770.0,25769.0,0.203603]
[1694082096346,4.9533074,25770.0,25769.0,0.203603]
[1694082096956,4.9532474,25770.0,25769.0,0.203603]
[1694082097202,4.9530074,25770.0,25769.0,0.203603]
[1694082097382,4.9529474,25770.0,25769.0,0.203603]
[1694082097587,4.9528874,25770.0,25769.0,0.203603]
[1694082097990,4.9529474,25770.0,25769.0,0.203603]
[1694082098234,4.9528274,25770.0,25769.0,0.203603]
[1694082098918,4.9527074,25770.0,25769.0,0.203603]
[1694082099121,4.9518674,25770.0,25769.0,0.203603]
[1694082099555,4.56438213,25770.0,25769.0,0.203603]
[1694082099778,4.49808213,25770.0,25769.0,0.203603]
[1694082103882,4.59098282,25770.0,25769.0,0.203603]
[1694082104363,4.79788816,25770.0,25769.0,0.203603]
[1694082105926,4.73038611,25770.0,25769.0,0.203603]
[1694082106732,4.80326052,25770.0,25769.0,0.203603]
[1694082108094,4.71035983,25770.0,25769.0,0.203603]
[1694082109256,4.75692271,25770.0,25769.0,0.203603]
[1694082110123,4.6840483,25770.0,25769.0,0.203603]
[1694082110329,4.96066632,25770.0,25769.0,0.203603]
[1694082111318,4.72808615,25770.0,25769.0,0.203603]
[1694082116905,5.00728781,25770.0,25769.0,0.203603]
[1694082118433,5.00744841,25770.0,25769.0,0.203603]
[1694082118642,5.39409368,25770.0,25769.0,0.203603]
[1694082120258,5.31409368,25770.0,25769.0,0.203603]
[1694082120467,5.39409368,25770.0,25769.0,0.203603]
[1694082123925,5.33409368,25770.0,25769.0,0.203603]
[1694082125357,5.31409368,25770.0,25769.0,0.203603]
[1694082125499,5.33409368,25770.0,25769.0,0.203603]
[1694082126773,5.10408966,25770.0,25769.0,0.203603]
[1694082126975,5.36129393,25770.0,25769.0,0.203603]
[1694082129864,5.10408966,25770.0,25769.0,0.203603]
[1694082131162,4.71744439,25770.0,25769.0,0.203603]
[1694082132811,4.69744439,25770.0,25769.0,0.203603]
[1694082142562,4.69744439,25770.0,25769.0,0.203603]
[1694082144106,4.88578217,25770.0,25769.0,0.203603]
[1694082146092,4.69744439,25770.0,25769.0,0.203603]
[1694082156776,4.44878,25770.0,25769.0,0.203603]
[1694082157297,4.04871774,25770.0,25769.0,0.203603]
[1694082158503,4.328158,25770.0,25769.0,0.203603]
[1694082162169,4.32814536,25770.0,25769.0,0.203603]
[1694082165432,3.94302942,25770.0,25769.0,0.203603]
[1694082167095,3.94302942,25770.0,25769.0,0.21539473]
[1694082171166,3.6636018,25770.0,25769.0,0.21539473]
[1694082176904,3.6436018,25770.0,25769.0,0.21539473]
[1694082186826,3.6436018,25770.0,25769.0,0.21539473]
[1694082191346,3.45310061,25770.0,25769.0,0.21539473]
[1694082191783,3.45310061,25770.0,25769.0,0.203603]
[1694082191983,3.45310061,25770.0,25769.0,0.21539738]
[1694082192389,3.83974588,25770.0,25769.0,0.21539738]
[1694082192594,5.09552934,25770.0,25769.0,0.21539738]
[1694082192793,5.09378934,25770.0,25769.0,0.203603]
[1694082193056,5.09402934,25770.0,25769.0,0.203603]
[1694082193243,4.70444407,25770.0,25769.0,0.203603]
[1694082193446,4.70120407,25770.0,25769.0,0.203603]
[1694082193784,4.70078407,25770.0,25769.0,0.203603]
[1694082197086,4.62902407,25770.0,25769.0,0.203603]
[1694082199293,5.46993461,25770.0,25769.0,0.203603]
[1694082199641,5.47203461,25770.0,25769.0,0.203603]
[1694082199851,5.47179461,25770.0,25769.0,0.203603]
[1694082200068,5.47149461,25770.0,25769.0,0.203603]
[1694082200261,5.47125461,25770.0,25769.0,0.203603]
[1694082200466,5.47113461,25770.0,25769.0,0.203603]
[1694082200772,5.47017461,25770.0,25769.0,0.203603]
[1694082200966,5.46981461,25770.0,25769.0,0.203603]
[1694082201098,5.08298934,25770.0,25769.0,0.203603]
[1694082201326,5.08310934,25770.0,25769.0,0.203603]
[1694082201535,5.08208934,25770.0,25769.0,0.203603]
[1694082201766,5.08178934,25770.0,25769.0,0.203603]
[1694082201999,5.08160934,25770.0,25769.0,0.203603]
[1694082202219,5.08142934,25770.0,25769.0,0.203603]
[1694082202452,5.08106934,25770.0,25769.0,0.203603]
[1694082202696,5.01566934,25770.0,25769.0,0.203603]
[1694082202981,5.40231461,25770.0,25769.0,0.203603]
[1694082204353,5.01566934,25770.0,25769.0,0.203603]
[1694082213027,5.01566934,25770.0,25769.0,0.203603]
[1694082218922,4.89496934,25770.0,25769.0,0.203603]
[1694082221787,4.89493159,25770.0,25769.0,0.203603]
[1694082222050,1.01445159,25770.0,25769.0,0.203603]
[1694082222278,4.89493159,25770.0,25769.0,0.203603]
[1694082237203,4.83396982,25770.0,25769.0,0.203603]
[1694082237409,4.83408414,25770.0,25769.0,0.203603]
[1694082238383,4.55466643,25770.0,25769.0,0.203603]
[1694082243033,4.67536643,25770.0,25769.0,0.203603]
[1694082252491,4.76241005,25770.0,25769.0,0.203603]
[1694082252684,4.82949005,25770.0,25769.0,0.203603]
[1694082252892,4.83231005,25770.0,25769.0,0.203603]
[1694082253142,4.83363005,25770.0,25769.0,0.203603]
[1694082253463,4.83219005,25770.0,25769.0,0.203603]
[1694082253684,4.83183005,25770.0,25769.0,0.203603]
[1694082253902,4.83171005,25770.0,25769.0,0.203603]
[1694082254042,4.83159005,25770.0,25769.0,0.203603]
[1694082254394,4.83129005,25770.0,25769.0,0.203603]
[1694082254525,4.83117005,25770.0,25769.0,0.203603]
[1694082254750,4.83441005,25770.0,25769.0,0.203603]
[1694082254949,4.83483005,25770.0,25769.0,0.203603]
[1694082255163,4.83471005,25770.0,25769.0,0.203603]
[1694082255350,4.83501005,25770.0,25769.0,0.203603]
[1694082255550,4.83411005,25770.0,25769.0,0.203603]
[1694082255918,4.83339005,25770.0,25769.0,0.203603]
[1694082256123,4.83327005,25770.0,25769.0,0.203603]
[1694082256321,4.83315005,25770.0,25769.0,0.203603]
[1694082256528,4.83255005,25770.0,25769.0,0.203603]
[1694082256710,4.83231005,25770.0,25769.0,0.203603]
[1694082256920,4.83141005,25770.0,25769.0,0.203603]
[1694082257131,4.83225005,25770.0,25769.0,0.203603]
[1694082257364,4.83177005,25770.0,25769.0,0.203603]
[1694082257540,4.83165005,25770.0,25769.0,0.203603]
[1694082257750,4.83177005,25770.0,25769.0,0.203603]
[1694082257947,4.83171005,25770.0,25769.0,0.203603]
[1694082258152,4.83129005,25770.0,25769.0,0.203603]
[1694082258355,4.83141005,25770.0,25769.0,0.203603]
[1694082258552,4.83165005,25770.0,25769.0,0.203603]
[1694082258759,4.83135005,25770.0,25769.0,0.203603]
[1694082258958,4.83159005,25770.0,25769.0,0.203603]
[1694082259287,4.83117005,25770.0,25769.0,0.203603]
[1694082259520,4.83159005,25770.0,25769.0,0.203603]
[1694082259953,4.83087005,25770.0,25769.0,0.203603]
[1694082260185,4.83105005,25770.0,25769.0,0.203603]
[1694082260408,4.83093005,25770.0,25769.0,0.203603]
[1694082260829,4.83027005,25770.0,25769.0,0.203603]
[1694082261032,4.83015005,25770.0,25769.0,0.203603]
[1694082262926,4.67536643,25770.0,25769.0,0.203603]
[1694082263193,4.74088643,25770.0,25769.0,0.203603]
[1694082263398,4.74106643,25770.0,25769.0,0.203603]
[1694082263618,4.74100643,25770.0,25769.0,0.203603]
[1694082263811,4.74070643,25770.0,25769.0,0.203603]
[1694082264017,4.74196643,25770.0,25769.0,0.203603]
[1694082264211,5.1305917,25770.0,25769.0,0.203603]
[1694082264385,5.1305317,25770.0,25769.0,0.203603]
[1694082264734,5.1304717,25770.0,25769.0,0.203603]
[1694082264935,5.1304117,25770.0,25769.0,0.203603]
[1694082265146,5.1303517,25770.0,25769.0,0.203603]
[1694082265397,5.1301117,25770.0,25769.0,0.203603]
[1694082265590,5.1300517,25770.0,25769.0,0.203603]
[1694082265762,5.1296317,25770.0,25769.0,0.203603]
[1694082265985,5.1298117,25770.0,25769.0,0.203603]
[1694082266193,5.1296317,25770.0,25769.0,0.203603]
[1694082266513,5.1295717,25770.0,25769.0,0.203603]
[1694082266749,5.1292117,25770.0,25769.0,0.203603]
[1694082266957,5.1289117,25770.0,25769.0,0.203603]
[1694082267159,5.1288517,25770.0,25769.0,0.203603]
[1694082267363,5.1287917,25770.0,25769.0,0.203603]
[1694082267543,5.1286717,25770.0,25769.0,0.203603]
[1694082267694,5.1285517,25770.0,25769.0,0.203603]
[1694082267911,5.1281917,25770.0,25769.0,0.203603]
[1694082268112,5.1283117,25770.0,25769.0,0.203603]
[1694082268312,5.1282517,25770.0,25769.0,0.203603]
[1694082268515,5.1276517,25770.0,25769.0,0.203603]
[1694082268890,5.1277117,25770.0,25769.0,0.203603]
[1694082269090,5.1276517,25770.0,25769.0,0.203603]
[1694082269296,5.1279517,25770.0,25769.0,0.203603]
[1694082269546,5.0620117,25770.0,25769.0,0.203603]
[1694082269975,5.1298717,25770.0,25769.0,0.203603]
[1694082270175,5.1291517,25770.0,25769.0,0.203603]
[1694082270496,5.1290917,25770.0,25769.0,0.203603]
[1694082270698,5.1289717,25770.0,25769.0,0.203603]
[1694082270900,5.1289117,25770.0,25769.0,0.203603]
[1694082271200,5.1286117,25770.0,25769.0,0.203603]
[1694082271405,5.1285517,25770.0,25769.0,0.203603]
[1694082271693,5.1282517,25770.0,25769.0,0.203603]
[1694082271916,5.1281917,25770.0,25769.0,0.203603]
[1694082272130,5.1280717,25770.0,25769.0,0.203603]
[1694082272325,5.1277117,25770.0,25769.0,0.203603]
[1694082272565,5.12778417,25770.0,25769.0,0.203603]
[1694082272784,5.12760417,25770.0,25769.0,0.203603]
[1694082272993,5.12754417,25770.0,25769.0,0.203603]
[1694082273418,5.12748417,25770.0,25769.0,0.203603]
[1694082273624,5.12742417,25770.0,25769.0,0.203603]
[1694082273972,5.06214417,25770.0,25769.0,0.203603]
[1694082274604,5.12904417,25770.0,25769.0,0.203603]
[1694082274804,5.12826417,25770.0,25769.0,0.203603]
[1694082275007,5.12970417,25770.0,25769.0,0.203603]
[1694082275229,5.13006417,25770.0,25769.0,0.203603]
[1694082275408,5.12796417,25770.0,25769.0,0.203603]
[1694082275609,5.12784417,25770.0,25769.0,0.203603]
[1694082276010,5.06214417,25770.0,25769.0,0.203603]
[1694082286205,5.12300028,25770.0,25769.0,0.203603]
[1694082302596,4.73635501,25770.0,25769.0,0.203603]
[1694082351103,4.15734048,25770.0,25769.0,0.203603]
[1694082351320,3.26054448,25770.0,25769.0,0.203603]
[1694082351532,0.34852974,25770.0,25769.0,0.203603]
[1694082351738,1.07045561,25770.0,25769.0,0.21492418]
[1694082351950,1.37045561,25770.0,25769.0,0.21492418]
[1694082352170,1.25675393,25770.0,25769.0,0.21492418]
[1694082352378,1.25675393,25770.0,25769.0,0.21292418]
[1694082352583,0.27178983,25770.0,25769.0,0.21492418]
[1694082352998,0.27178983,25770.0,25769.0,0.21292418]
[1694082353228,0.24778983,25770.0,25769.0,0.21092418]
[1694082353466,0.25778983,25770.0,25769.0,0.21292418]
[1694082353688,0.39745747,25770.0,25769.0,0.21292418]
[1694082354363,0.39745747,25770.0,25769.0,0.201603]
[1694082354604,0.42245747,25770.0,25769.0,0.203603]
[1694082354851,0.23615915,25770.0,25769.0,0.324303]
[1694082355055,0.23615915,25770.0,25769.0,0.33159225]
[1694082355056,0.2942721,25770.0,25769.0,0.33159225]
[1694082355259,0.3292721,25770.0,25769.0,0.33559225]
[1694082355665,0.15460446,25770.0,25769.0,0.33159225]
[1694082355846,0.16460446,25770.0,25769.0,0.33359225]
[1694082355979,0.17960446,25770.0,25769.0,0.33359225]
[1694082356406,0.18960446,25770.0,25769.0,0.33559225]
[1694082357450,0.16460446,25770.0,25769.0,0.33359225]
[1694082358271,0.18560446,25770.0,25769.0,0.33559225]
[1694082358479,0.96170046,25770.0,25769.0,0.33559225]
[1694082359515,0.86858751,25770.0,25769.0,0.33559225]
[1694082360146,0.96170046,25770.0,25769.0,0.33559225]
[1694082360612,0.86858751,25770.0,25769.0,0.33559225]
[1694082361015,0.96170046,25770.0,25769.0,0.33559225]
[1694082361251,0.86858751,25770.0,25769.0,0.33559225]
[1694082361657,1.64468351,25770.0,25769.0,0.33559225]
[1694082372579,1.64464765,25770.0,25769.0,0.33559225]
[1694082377119,1.64464765,25770.0,25769.0,0.21489225]
[1694082381845,1.7377606,25770.0,25769.0,0.21489225]
[1694082383546,2.5138566,25770.0,25769.0,0.21489225]
[1694082390518,2.65352424,25770.0,25769.0,0.21489225]
[1694082392612,2.56041129,25770.0,25769.0,0.21489225]
[1694082395371,2.74670961,25770.0,25769.0,0.21489225]
[1694082395577,2.83962529,25770.0,25769.0,0.21489225]
[1694082395776,3.45913866,25770.0,25769.0,0.21489225]
[1694082396353,3.03997224,25770.0,25769.0,0.21489225]
[1694082396555,3.07258353,25770.0,25769.0,0.21489225]
[1694082396755,2.88624728,25770.0,25769.0,0.21489225]
[1694082412410,2.11015128,25770.0,25769.0,0.21489225]
[1694082416539,2.11015128,25770.0,25769.0,0.21489225]
[1694082423769,2.04929517,25770.0,25769.0,0.21489225]
[1694082439846,1.81637486,25770.0,25769.0,0.21489225]
[1694082441979,3.07797038,25770.0,25769.0,0.21489225]
[1694082443033,2.71317086,25770.0,25769.0,0.21489225]
[1694082443238,2.71317086,25770.0,25769.0,0.203603]
[1694082444010,2.71317086,25770.0,25769.0,0.21439802]
[1694082452648,2.71303839,25770.0,25769.0,0.21439802]
[1694082465893,2.71303839,25770.0,25769.0,0.21439802]
[1694082466991,3.09968366,25770.0,25769.0,0.21439802]
[1694082484768,3.09722527,25770.0,25769.0,0.21439802]
[1694082489056,2.32112927,25770.0,25769.0,0.21439802]
[1694082517739,2.32112927,25770.0,25769.0,0.21439802]
[1694082524264,2.32112927,25770.0,25769.0,0.15993034]
[1694082533107,2.20042927,25770.0,25769.0,0.15993034]
[1694082536179,1.42433327,25770.0,25769.0,0.15993034]
[1694082544160,0.02900868,25770.0,25769.0,0.15993034]
[1694082544705,0.02900868,25770.0,25769.0,0.14913532]
[1694082544904,0.02900868,25770.0,25769.0,0.92526132]
[1694082546305,0.02900868,25770.0,25769.0,0.14913532]
[1694082552563,0.02910143,25770.0,25769.0,0.14913532]
[1694082554419,0.26222102,25770.0,25769.0,0.14913532]
[1694082555995,0.24122102,25770.0,25769.0,0.14713532]
[1694082556233,0.26222102,25770.0,25769.0,0.14913532]
[1694082556828,0.26263743,25770.0,25769.0,0.14913532]
[1694082557084,0.23409582,25770.0,25769.0,0.14513532]
[1694082557891,0.25509582,25770.0,25769.0,0.14713532]
[1694082558516,0.26209582,25770.0,25769.0,0.14813532]
[1694082558931,0.25509582,25770.0,25769.0,0.14713532]
[1694082559138,0.26209582,25770.0,25769.0,0.14813532]
[1694082560782,0.24109582,25770.0,25769.0,0.14613532]
[1694082561192,0.26309582,25770.0,25769.0,0.14813532]
[1694082561596,0.25609582,25770.0,25769.0,0.14713532]
[1694082561826,0.26309582,25770.0,25769.0,0.14813532]
[1694082562146,0.25609582,25770.0,25769.0,0.14713532]
[1694082562346,0.23409582,25770.0,25769.0,0.14513532]
[1694082562545,0.25409582,25770.0,25769.0,0.14713532]
[1694082564313,0.25408122,25770.0,25769.0,0.14713532]
[1694082565186,0.20332102,25770.0,25769.0,0.14713532]
[1694082567478,0.48302994,25770.0,25769.0,0.14713532]
[1694082567688,0.20332102,25770.0,25769.0,0.14713532]
[1694082570148,0.97941702,25770.0,25769.0,0.14713532]
[1694082570355,0.79707223,25770.0,25769.0,0.14713532]
[1694082570967,1.05443291,25770.0,25769.0,0.14713532]
[1694082571176,0.79707223,25770.0,25769.0,0.14713532]
[1694082581452,1.03013596,25770.0,25769.0,0.14713532]
[1694082582036,0.79707223,25770.0,25769.0,0.14713532]
[1694082583513,1.03013587,25770.0,25769.0,0.14713532]
[1694082583649,0.79707223,25770.0,25769.0,0.14713532]
[1694082585575,1.2965052,25770.0,25769.0,0.14713532]
[1694082585792,1.01684547,25770.0,25769.0,0.14713532]
[1694082590356,1.79294147,25770.0,25769.0,0.14713532]
[1694082591993,1.95802309,25770.0,25769.0,0.14713532]
[1694082592194,2.85481909,25770.0,25769.0,0.14713532]
[1694082592394,2.46996423,25770.0,25769.0,0.14713532]
[1694082592727,2.70000753,25770.0,25769.0,0.14713532]
[1694082593811,2.97953793,25770.0,25769.0,0.14713532]
[1694082605365,2.70000753,25770.0,25769.0,0.14713532]
[1694082625758,2.97953793,25770.0,25769.0,0.14713532]
[1694082628327,2.70000753,25770.0,25769.0,0.14713532]
[1694082659002,2.46956423,25770.0,25769.0,0.14713532]
[1694082659207,2.46984284,25770.0,25769.0,0.14713532]
[1694082660275,2.70542766,25770.0,25769.0,0.14713532]
[1694082661039,2.46984284,25770.0,25769.0,0.14713532]
[1694082663017,2.68538131,25770.0,25769.0,0.14713532]
[1694082668112,2.85648811,25770.0,25769.0,0.14713532]
[1694082669230,2.84348811,25770.0,25769.0,0.14613532]
[1694082669888,2.83648811,25770.0,25769.0,0.14513532]
[1694082670085,2.85448811,25770.0,25769.0,0.14613532]
[1694082670457,2.87448811,25770.0,25769.0,0.14813532]
[1694082670908,2.85448811,25770.0,25769.0,0.14613532]
[1694082671247,2.87448811,25770.0,25769.0,0.14813532]
[1694082674688,3.18893206,25770.0,25769.0,0.14813532]
[1694082675325,2.87448811,25770.0,25769.0,0.14813532]
[1694082675773,3.18892957,25770.0,25769.0,0.14813532]
[1694082681029,3.18892957,25770.0,25769.0,0.14513532]
[1694082681030,3.15092957,25770.0,25769.0,0.14513532]
[1694082681258,3.17492957,25770.0,25769.0,0.14713532]
[1694082681396,3.19892957,25770.0,25769.0,0.14913532]
[1694082682166,3.17492957,25770.0,25769.0,0.14713532]
[1694082682941,3.19892957,25770.0,25769.0,0.14913532]
[1694082683815,3.58557484,25770.0,25769.0,0.14913532]
[1694082684151,3.58557484,25770.0,25763.0,0.3464]
[1694082684357,0.72344151,25769.0,25763.0,0.3464]
[1694082684560,0.35354905,25764.0,25763.0,0.3464]
[1694082684771,2.71917329,25764.0,25763.0,0.1801]
[1694082684973,2.68237705,25764.0,25760.0,0.06043185]
[1694082685182,0.35352735,25762.0,25760.0,0.44707712]
[1694082685383,1.12986835,25762.0,25760.0,0.44707712]
[1694082685886,0.99017194,25762.0,25760.0,0.44707712]
[1694082686018,0.00080205,25761.0,25760.0,0.44707712]
[1694082686217,0.00080205,25761.0,25760.0,0.46507712]
[1694082686742,0.00080205,25761.0,25760.0,0.48207712]
[1694082687099,0.00080205,25761.0,25760.0,0.46507712]
[1694082687321,0.00080205,25761.0,25760.0,0.44707712]
[1694082687523,0.00280205,25761.0,25760.0,0.46407712]
[1694082687726,0.00280205,25761.0,25760.0,0.48807712]
[1694082687946,0.00280205,25761.0,25760.0,0.46407712]
[1694082688404,0.00480205,25761.0,25760.0,0.48807712]
[1694082691301,0.19988801,25761.0,25760.0,0.48807712]
[1694082696180,0.19788801,25761.0,25760.0,0.47107712]
[1694082696379,0.19988801,25761.0,25760.0,0.48607712]
[1694082696878,0.19588801,25761.0,25760.0,0.44707712]
[1694082697711,0.19788801,25761.0,25760.0,0.47107712]
[1694082697875,0.19588801,25761.0,25760.0,0.44707712]
[1694082698290,0.19788801,25761.0,25760.0,0.47107712]
[1694082698684,0.19988801,25761.0,25760.0,0.48607712]
[1694082700308,0.19988801,25761.0,25760.0,0.42607712]
[1694082700556,0.19988801,25761.0,25760.0,0.48607712]
[1694082703990,0.29301895,25761.0,25760.0,0.48607712]
[1694082706737,0.29301895,25761.0,25760.0,0.42607712]
[1694082706937,0.29301895,25761.0,25760.0,0.48607712]
[1694082710424,0.29301895,25761.0,25760.0,0.42607712]
[1694082710654,1.84575295,25761.0,25760.0,0.03943185]
[1694082713116,1.98544936,25761.0,25760.0,0.03943185]
[1694082713366,2.37209463,25761.0,25760.0,0.03943185]
[1694082713601,2.10614936,25761.0,25760.0,0.03943185]
[1694082714406,2.01301842,25761.0,25760.0,0.03943185]
[1694082716747,1.89231842,25761.0,25760.0,0.03943185]
[1694082721241,2.78938542,25761.0,25760.0,0.03943185]
[1694082721448,3.22259616,25761.0,25760.0,0.03943185]
[1694082722091,3.22059616,25761.0,25760.0,0.02443185]
[1694082722303,3.22059616,25761.0,25760.0,0.03243185]
[1694082722523,3.22159616,25761.0,25760.0,0.03243185]
[1694082722725,3.21961124,25761.0,25760.0,0.00843185]
[1694082722960,3.21861124,25761.0,25760.0,0.00143185]
[1694082723164,3.21961124,25761.0,25760.0,0.00343185]
[1694082728798,3.45245745,25761.0,25760.0,0.00343185]
[1694082729636,3.21961124,25761.0,25760.0,0.00343185]
[1694082729840,3.45245745,25761.0,25760.0,0.00343185]
[1694082730478,3.26618049,25761.0,25760.0,0.00343185]
[1694082732586,3.45249905,25761.0,25760.0,0.00343185]
[1694082732807,3.26618049,25761.0,25760.0,0.00343185]
[1694082733416,3.4524991,25761.0,25760.0,0.00343185]
[1694082733661,3.26618049,25761.0,25760.0,0.00343185]
[1694082735453,3.45249416,25761.0,25760.0,0.00343185]
[1694082735878,3.45249536,25761.0,25760.0,0.00343185]
[1694082737501,3.26618049,25761.0,25760.0,0.00343185]
[1694082738666,3.45249215,25761.0,25760.0,0.00343185]
[1694082738864,3.26618049,25761.0,25760.0,0.00343185]
[1694082739283,3.45249451,25761.0,25760.0,0.00343185]
[1694082739487,3.26618049,25761.0,25760.0,0.00343185]
[1694082740980,3.45249449,25761.0,25760.0,0.00343185]
[1694082744021,3.26618049,25761.0,25760.0,0.00343185]
[1694082745091,2.87953522,25761.0,25760.0,0.00343185]
[1694082756787,2.87953522,25761.0,25760.0,0.00243185]
[1694082756788,2.64668901,25761.0,25760.0,0.00243185]
[1694082757185,2.65368901,25761.0,25760.0,0.00143185]
[1694082757389,2.64568901,25761.0,25760.0,0.00043185]
[1694082757643,2.65368901,25761.0,25760.0,0.00143185]
[1694082757844,3.04833428,25761.0,25760.0,0.00243185]
[1694082758000,3.04033428,25761.0,25760.0,0.00143185]
[1694082758220,3.04833428,25761.0,25760.0,0.00243185]
[1694082763379,2.66168901,25761.0,25760.0,0.00243185]
[1694082805479,2.94121603,25761.0,25760.0,0.00243185]
[1694082812468,4.1042283,25761.0,25760.0,0.00243185]
[1694082822756,0.9987603,25761.0,25760.0,0.00243185]
[1694082822957,3.3278613,25761.0,25760.0,0.00243185]
[1694082823499,4.1042283,25761.0,25760.0,0.00243185]
[1694082853276,3.52249707,25761.0,25760.0,0.00243185]
[1694082853534,1.84906307,25761.0,25760.0,0.00243185]
[1694082854555,2.62543007,25761.0,25760.0,0.00243185]
[1694082864267,2.34590305,25761.0,25760.0,0.00243185]
[1694082864740,3.43388819,25761.0,25760.0,0.00243185]
[1694082864937,3.05613077,25761.0,25760.0,0.00243185]
[1694082865430,3.33568253,25761.0,25760.0,0.00243185]
[1694082866123,3.33568349,25761.0,25760.0,0.00243185]
[1694082870922,2.94903822,25761.0,25760.0,0.00243185]
[1694082871287,3.1097024,25761.0,25760.0,0.00243185]
[1694082882793,2.83015064,25761.0,25760.0,0.00243185]
[1694082890003,2.98388159,25761.0,25760.0,0.00243185]
[1694082890756,2.98387253,25761.0,25760.0,0.00243185]
[1694082891742,2.66948646,25761.0,25760.0,0.00243185]
[1694082893832,2.46660401,25761.0,25760.0,0.00243185]
[1694082894525,3.02236828,25761.0,25760.0,0.00243185]
[1694082895120,3.07025897,25761.0,25760.0,0.00243185]
[1694082896471,2.75596388,25761.0,25760.0,0.00243185]
[1694082897173,2.82878979,25761.0,25760.0,0.00243185]
[1694082898296,3.07992455,25761.0,25760.0,0.00243185]
[1694082902784,2.76562946,25761.0,25760.0,0.00243185]
[1694082905447,2.71773877,25761.0,25760.0,0.00243185]
[1694082918750,2.46660401,25761.0,25760.0,0.00243185]
[1694082922607,2.97785423,25761.0,25760.0,0.00243185]
[1694082922808,2.78080383,25761.0,25760.0,0.00243185]
[1694082927774,2.46660401,25761.0,25760.0,0.00243185]
[1694082927980,2.85324928,25761.0,25760.0,0.00243185]
[1694082928575,2.46660401,25761.0,25760.0,0.00243185]
[1694082934508,2.85324928,25761.0,25760.0,0.00243185]
[1694082935354,2.84524928,25761.0,25760.0,0.00143185]
[1694082935678,2.86924928,25761.0,25760.0,0.00143185]
[1694082936319,3.01944928,25761.0,25760.0,0.00143185]
[1694082936721,3.39809455,25761.0,25760.0,0.00043185]
[1694082936867,3.42209455,25761.0,25760.0,0.00243185]
[1694082937666,3.01144928,25761.0,25760.0,0.00243185]
[1694082937860,3.03544928,25761.0,25760.0,0.00243185]
[1694082945969,2.88524928,25761.0,25760.0,0.00243185]
[1694082946169,3.25052928,25761.0,25760.0,0.00243185]
[1694082946372,3.18524928,25761.0,25760.0,0.00243185]
[1694082946967,3.25714247,25761.0,25760.0,0.00243185]
[1694082947535,3.318028,25761.0,25760.0,0.00243185]
[1694082947723,3.24613481,25761.0,25760.0,0.00243185]
[1694082954648,3.31147481,25761.0,25760.0,0.00243185]
[1694082955181,3.31159481,25761.0,25760.0,0.00243185]
[1694082955441,3.31183481,25761.0,25760.0,0.00243185]
[1694082956391,3.31189481,25761.0,25760.0,0.00243185]
[1694082956639,3.31219481,25761.0,25760.0,0.00243185]
[1694082956829,3.24613481,25761.0,25760.0,0.00243185]
[1694082958763,3.63278008,25761.0,25760.0,0.00243185]
[1694082968519,3.70022008,25761.0,25760.0,0.00243185]
[1694082968723,3.70166008,25761.0,25760.0,0.00243185]
[1694082969129,3.70172008,25761.0,25760.0,0.00243185]
[1694082969386,3.63278008,25761.0,25760.0,0.00243185]
[1694082985914,3.63278008,25761.0,25760.0,3.00243185]
[1694082986495,3.63278008,25761.0,25760.0,3.01519046]
[1694082986702,3.24613481,25761.0,25760.0,3.01519046]
[1694082996877,3.47186824,25761.0,25760.0,3.01519046]
[1694082999204,3.24613481,25761.0,25760.0,3.01519046]
[1694083004461,3.56728268,25761.0,25760.0,3.01519046]
[1694083004700,3.56734268,25761.0,25760.0,3.01519046]
[1694083004936,3.95386795,25761.0,25760.0,3.01519046]
[1694083005157,3.69824008,25761.0,25760.0,3.01519046]
[1694083005399,3.69812008,25761.0,25760.0,3.01519046]
[1694083005883,3.88532629,25761.0,25760.0,3.01519046]
[1694083006115,3.88562629,25761.0,25760.0,3.01519046]
[1694083006258,3.69836008,25761.0,25760.0,3.01519046]
[1694083006457,3.69830008,25761.0,25760.0,3.01519046]
[1694083006758,3.88452283,25761.0,25760.0,3.01519046]
[1694083006985,3.88458283,25761.0,25760.0,3.01519046]
[1694083007746,3.88452283,25761.0,25760.0,3.01519046]
[1694083008475,3.88488283,25761.0,25760.0,3.01519046]
[1694083008705,3.88482283,25761.0,25760.0,3.01519046]
[1694083009506,3.69872008,25761.0,25760.0,3.01519046]
[1694083009733,3.69884008,25761.0,25760.0,3.01519046]
[1694083009934,3.69848008,25761.0,25760.0,3.01519046]
[1694083010161,3.69836008,25761.0,25760.0,3.01519046]
[1694083010479,3.69854008,25761.0,25760.0,3.01519046]
[1694083010709,3.63278008,25761.0,25760.0,3.01519046]
[1694083011899,3.69860008,25761.0,25760.0,3.01519046]
[1694083012543,3.89950517,25761.0,25760.0,3.01519046]
[1694083012742,3.69854008,25761.0,25760.0,3.01519046]
[1694083012940,3.69860008,25761.0,25760.0,3.01519046]
[1694083013145,3.69890008,25761.0,25760.0,3.01519046]
[1694083013341,3.69896008,25761.0,25760.0,3.01519046]
[1694083013563,3.69878008,25761.0,25760.0,3.01519046]
[1694083013969,3.69884008,25761.0,25760.0,3.01519046]
[1694083014167,3.93338133,25761.0,25760.0,3.01519046]
[1694083014375,3.93392133,25761.0,25760.0,3.01519046]
[1694083014517,3.93380133,25761.0,25760.0,3.01519046]
[1694083014715,3.93374133,25761.0,25760.0,3.01519046]
[1694083015295,3.93368133,25761.0,25760.0,3.01519046]
[1694083015490,3.93374133,25761.0,25760.0,3.01519046]
[1694083015826,3.69920008,25761.0,25760.0,3.01519046]
[1694083016085,3.88236545,25761.0,25760.0,3.01519046]
[1694083016273,3.88230545,25761.0,25760.0,3.01519046]
[1694083016689,3.69914008,25761.0,25760.0,3.01519046]
[1694083016890,3.90428559,25761.0,25760.0,3.01519046]
[1694083017340,3.90434559,25761.0,25760.0,3.01519046]
[1694083017541,3.69914008,25761.0,25760.0,3.01519046]
[1694083017888,3.70454008,25761.0,25760.0,3.01519046]
[1694083018005,3.70322008,25761.0,25760.0,3.01519046]
[1694083018369,3.70346008,25761.0,25760.0,3.01519046]
[1694083019004,3.70472008,25761.0,25760.0,3.01519046]
[1694083019201,3.70478008,25761.0,25760.0,3.01519046]
[1694083019428,3.70376008,25761.0,25760.0,3.01519046]
[1694083019639,3.70454008,25761.0,25760.0,3.01519046]
[1694083019877,3.70400008,25761.0,25760.0,3.01519046]
[1694083020132,3.70412008,25761.0,25760.0,3.01519046]
[1694083020331,3.70790008,25761.0,25760.0,3.01519046]
[1694083020673,3.70382008,25761.0,25760.0,3.01519046]
[1694083020987,3.70466008,25761.0,25760.0,3.01519046]
[1694083021182,3.70388008,25761.0,25760.0,3.01519046]
[1694083021415,3.70382008,25761.0,25760.0,3.01519046]
[1694083021615,3.70394008,25761.0,25760.0,3.01519046]
[1694083021901,3.70400008,25761.0,25760.0,3.01519046]
[1694083022129,3.70352008,25761.0,25760.0,3.01519046]